Workbook

Sheet Read Me
A2: Read Me Sheet
A4: Solar Powered Irrigation Systems - Manual and Tools
B10: Introduction
A11: DESIGN 06 - Farm Analysis Tool
A12: This tool allows for assessment on farm productivity and profitability, through ist agricultural production.
A13: This tool allows an SPIS advisor (supplier, development practisioner, extension officer) to support a farm enterprise towards identify unnecessary costs, determine best value agricultural activities and correctly monetise differt farm inputs.
B15: Overview
A17: This tool comprises the following sheets:
B18: 1. General Information | E18: on the farm identity, location and area
B19: 2. Equipment & Assets | E19: currently available on the farm or considered for future purchase
B20: 3. Fixed Costs & Financing | E20: that comprises fixed regular expenditures
B21: 4. Seasonal Crops | E21: to add current or projected sales of seasonal crops (e.g. rice, vegetables, fodder) and by-products and the related variable expenditures
B23: 5. Perennial Crops | E23: to add current or projected sales of perennial crops (e.g. fruit trees) and by-products and the related variable expenditures
B25: 6. Livestock | E25: to add current or projected sales of livestock, poultry and by-products and the related variable expenditures
B27: 7. Summary | E27: No Entry! Table summarising crop and livestock income and variable expenditures
B29: 8. Farm Income Statement | E29: No Entry! Summary calculation on gross profitability of the farm enterprise
B31: Tips & Tricks
A33: This tool contains numerous critical formulas or calculations.
A34: Only add data into white (non-coloured) cells!
A35: This tool provides an indicative assessment of farm profitability, and should be complemented by depper and more detailed assessments, market analysis and other due diligence, before committing to large-scale investments.
B37: About
B38: Authors: Robert Schultz, GFA Consulting
B39: Version: 1.0 (January 2017)
B40: Published by: Powering Agriculture – An Energy Grand Challenge for Development
E41: Internet: https://poweringag.org
B42: Design/layout:
A43: Download link:
B44: Contact: Robert.Schultz@giz.de
B46: GIZ encourages the use, reproduction and dissemination of material in this information product. Except where otherwise indicated, material may be copied, downloaded and printed for private study, research and teaching purposes, or for use in non-commercial products or services, provided that appropriate acknowledgement of GIZ as the source.
B50: © GIZ 2017

Sheet 1 General Information
A1: DESIGN 06 - Farm Analysis Tool
B2: 1 GENERAL FARM INFORMATION
B5: Country | C5: Namibia | G5: Region | H5: Karas
B6: Farm code | C6: Nam_123456789 | G6: Date | H6: 2017-11-14
B8: Name of the farm
B9: Village
B10: Division
B11: District
B12: Interviewer
B13: Agricultural campaign | D13: 2019 | E13: 2020 | F13: ( four digits each ! )
B14: Currency used for calculation | D14: €
B15: Area measurement unit | D15: ha | I15: Conversion factor to 1 ha : | J15: 1
B16: Weight measurement unit | D16: kg | I16: Conversion factor to 1 kg : | J16: 1
B19: LAND RESOURCES
B21: Property status | D21: Area
B22: + Land owned | E22: 7 | F22: =+$D$15 -> ha | G22: = | I22: =+E22/$J$15 -> 7 | J22: ha
B23: + Part of co-operative land | F23: ha | G23: = | I23: =+E23/$J$15 -> 0 | J23: ha
B24: + Land exploited as sharegrower (partner possesses) | F24: ha | G24: = | I24: 0 | J24: ha
B25: + Land leased in | E25: 3 | F25: ha | G25: = | I25: 3 | J25: ha
B26: - Land leased out | E26: 1 | F26: ha | G26: = | I26: 1 | J26: ha
B27: + Land in possession of other sources | F27: ha | G27: = | I27: 0 | J27: ha
D28: Total | E28: =+SUM(E22:E25)-E26+E27 -> 9 | F28: ha | G28: = | I28: 9 | J28: ha
B30: Access to communal grazing lands | D30: Yes | H30: No | I30: X
B32: Land classification | D32: Area | E32: rain fed | F32: irrigated | I32: Total area
B33: Seasonal crop land | E33: 2 | F33: 7 | G33: =+$D$15 -> ha | H33: = | I33: =(+E33+F33)/$J$15 -> 9 | J33: ha
B34: Perennials (with & without option of intercropping) | F34: 0 | G34: ha | H34: = | I34: =(+E34+F34)/$J$15 -> 0 | J34: ha
B35: Greenhouses | G35: ha | H35: = | I35: =(+E35+F35)/$J$15 -> 0 | J35: ha
B36: Pastures (grazing land) | G36: ha | H36: = | I36: =(+E36+F36)/$J$15 -> 0 | J36: ha
G37: ha | H37: = | I37: =(+E37+F37)/$J$15 -> 0 | J37: ha
D38: Total agricultural / horticultural land | E38: =+SUM(E33:E37) -> 2 | F38: =+SUM(F33:F37) -> 7 | G38: ha | H38: = | I38: =IF((+$I$33+$I$34+$I$35+$I$36+$I$37)=I28,+$I$33+$I$34+$I$35+$I$36+$I$37,"CHECK !") -> 9 | J38: ha
B40: Afforested area | F40: =+$D$15 -> ha | G40: = | I40: =+E40/$J$15 -> 0 | J40: ha
B41: Long term fallow ( >3 years ) | F41: =+$D$15 -> ha | G41: = | I41: =+E41/$J$15 -> 0 | J41: ha
D42: Total non-agricultural land | E42: =+E41+E40 -> 0 | F42: =+$D$15 -> ha | G42: = | I42: =+E42/$J$15 -> 0 | J42: ha
E43: or lease in kind
B44: Lease costs | C44: 300 | D44: =+$D$14 -> € | E44: for | F44: =+$E$25 -> 3 | G44: leased in
B45: unit costs equivalent to | C45: =IF(F44=0,0,+C44/F44) -> 100 | D45: =+$D$14 -> €
B47: Revenue from lease | C47: 500 | D47: =+$D$14 -> € | E47: for | F47: =+$E$26 -> 1 | G47: leased out
B48: unit revenue equivalent to | C48: =IF(F47=0,0,+C47/F47) -> 500 | D48: =+$D$14 -> €

Sheet 2 Equipment & Assets
A1: DESIGN 06 - Farm Analysis Tool
B2: 2 EQUIPMENT & ASSETS
B4: Annual inflation rate | C4: 0.054 | F4: Farm code | G4: ='1 General Information'!C6 -> Nam_123456789 | J4: Please select | L4: Please select
J5: Sugar cane | L5: Livestock shed / stable
B6: Type (Position the mouse on "Type" to get suggestions) | E6: Today's value of equivalent replacement | F6: Age | G6: Normal life span | H6: Annual depreciation for replacement | J6: Fruit tree | L6: Workshop / garage
J7: Olive | L7: Storage / warehouse
J8: Dates | L8: Other buildings
L9: Well / borehole
E10: ='1 General Information'!D14 -> € | F10: years | G10: years | H10: ='1 General Information'!D14 -> € | L10: Ox cart | N10: Indicative normal life span:
B11: Sprayer | E11: 450000 | F11: 4 | G11: 7 | H11: =IF(G11=0,0,+IF((+G11-F11)<0,"amorti ",(E11*((1+$C$4)^(G11-F11)))/G11)) -> 75272.49411 | L11: Tractor / car
B12: Well / borehole | E12: 275000 | F12: 10 | G12: 20 | H12: =IF(G12=0,0,+IF((+G12-F12)<0,"amorti ",(E12*((1+$C$4)^(G12-F12)))/G12)) -> 23265.30803 | L12: Plough | N12: Livestock shed - 20 years
B13: Livestock shed / stable | H13: 0 | L13: Cultivator / tiller | N13: Garage / Workshop - 20 year
B14: Please select | H14: 0 | L14: Sowing machine | N14: Storage / warehouse - 20 years
B15: Please select | H15: 0 | L15: Fertilizer distributor | N15: Other building - 20 years
B16: Please select | H16: 0 | L16: Sprayer | N16: Well / borehole - 20 years
B17: Please select | H17: 0 | L17: Grass cutter | N17: Ox cart - 7 years
B18: Please select | H18: 0 | L18: Baler | N18: Truck / car - 10 years
B19: Please select | H19: 0 | L19: Cereal harvester | N19: Tractor - 10 years
B20: Please select | H20: 0 | L20: Irrigation material | N20: Plough - 7 years
B21: Please select | H21: 0 | L21: Water pump | N21: Cultivator / tiller - 7 years
B22: Please select | H22: 0 | L22: PV generator | N22: Sowing machine - 7 years
B23: Please select | H23: 0 | L23: Glashouse equipement | N23: Fertilizer distributor - 7 years
B24: Please select | H24: 0 | N24: Sprayer - 7 years
B25: Please select | H25: 0 | N25: Grass cutter - 7 years
B26: Please select | H26: 0 | N26: Baler - 7 years
B27: Please select | H27: 0 | N27: Cereal harvester - 10 years
B28: Please select | H28: 0 | N28: Irrigation material - 5 years
H29: 0 | N29: Water pump - 7 years
H30: 0 | N30: PV generator - 20 years
H31: 0 | N31: Glasshouse equipment - 10 years
H32: 0
H33: 0
H34: 0
H35: 0
H36: 0
B37: Investment in perennial crops
B38: Fruit tree | E38: 12500 | F38: 5 | G38: 12 | H38: =IF(G38=0,0,+IF((+G38-F38)<0,"amorti ",(E38*((1+$G$3)^(G38-F38)))/G38)) -> 1041.666667
B39: Please select | H39: =IF(G39=0,0,+IF((+G39-F39)<0,"amorti ",(E39*((1+$G$3)^(G39-F39)))/G39)) -> 0
B40: Please select | H40: =IF(G40=0,0,+IF((+G40-F40)<0,"amorti ",(E40*((1+$G$3)^(G40-F40)))/G40)) -> 0
H41: =IF(G41=0,0,+IF((+G41-F41)<0,"amorti ",(E41*((1+$G$3)^(G41-F41)))/G41)) -> 0
H42: =IF(G42=0,0,+IF((+G42-F42)<0,"amorti ",(E42*((1+$G$3)^(G42-F42)))/G42)) -> 0
B44: TOTAL ANNUAL DEPRECIATION needed for replacement | G44: ='1 General Information'!D14 -> € | H44: =+SUM(H11:H42) -> 99579.46881

Sheet 3 Fixed Costs & Financing
A1: DESIGN 06 - Farm Analysis Tool
B2: 4 FIXED COSTS
L4: Farm code | M4: ='1 General Information'!C6 -> Nam_123456789
B6: Month | C6: January | D6: February | E6: March | F6: April | G6: May | H6: June | I6: July | J6: August | K6: September | L6: October | M6: November | N6: December | O6: Total
B7: Type of costs | C7: 1 | D7: 2 | E7: 3 | F7: 4 | G7: 5 | H7: 6 | I7: 7 | J7: 8 | K7: 9 | L7: 10 | M7: 11 | N7: 12
B8: Maintenance & repair of equipment | O8: =+SUM(C8:N8) -> 0
B9: Fuel & lubricants (except for irrigation pumps) | O9: =+SUM(C9:N9) -> 0
B10: Water electricity, gaz | O10: 0
B11: Transport (e.g. to the market) | O11: 0
B12: Membership fees (farmer organsisations) | O12: 0
B13: Insurance costs | O13: 0
B14: Other non-variable costs | O14: =+SUM(C14:N14) -> 0
B15: TOTAL per month | C15: =+SUM(C8:C14) -> 0 | D15: =+SUM(D8:D14) -> 0 | E15: 0 | F15: 0 | G15: 0 | H15: 0 | I15: 0 | J15: 0 | K15: 0 | L15: 0 | M15: 0 | N15: 0 | O15: =+SUM(O8:O14) -> 0
B16: Land tax | O16: 0
B17: Social fund contribution | O17: 0
B18: Other farm taxes | O18: 0
B19: CREDIT AND FINANCING (current)
B21: Bank name | C21: Loan amount | D21: Credit period (months) | E21: Month of taking credit | F21: Year of taking credit | G21: Annual interest rate | H21: Monthly loan repayment
B24: Test Bank | C24: 50000 | D24: 36 | E24: 1 | F24: 2017 | G24: 0.2 | H24: =IFERROR((J36+J47)/D24,0) -> 1944.444444
B25: tt | C25: 40000 | D25: 10 | E25: 3 | F25: 2017 | G25: 0.15 | H25: =IFERROR((J37+J48)/D25,0) -> 4500
H26: =IFERROR((J38+J49)/D26,0) -> 0
H27: =IFERROR((J39+J50)/D27,0) -> 0
H28: =IFERROR((J40+J51)/D28,0) -> 0
H29: 0
H30: 0
B31: TOTAL CREDIT | C31: =SUM(C24:C30) -> 90000 | H31: =SUM(H24:H30) -> 6444.444444
B34: Repayment of loan / financing amount
B35: 1st year | C35: 2nd year | D35: 3rd year | E35: 4th year | F35: 5th year | G35: 6th year | H35: 7th year | I35: 8th year | J35: Total
B36: =IF(ISBLANK($C$24),"",+B58/$D24*$C24) -> 16666.66667 | C36: =IF(ISBLANK($C$24),"",+C58/$D24*$C24) -> 16666.66667 | D36: =IF(ISBLANK($C$24),"",+D58/$D24*$C24) -> 16666.66667 | E36: 0 | F36: 0 | G36: 0 | H36: 0 | I36: 0 | J36: =+SUM(B36:I36) -> 50000
B37: =IF(ISBLANK($C$25),"",+B59/$D25*$C25) -> 40000 | C37: =IF(ISBLANK($C$25),"",+C59/$D25*$C25) -> 0 | D37: =IF(ISBLANK($C$25),"",+D59/$D25*$C25) -> 0 | E37: 0 | F37: 0 | G37: 0 | H37: 0 | I37: 0 | J37: =+SUM(B37:I37) -> 40000
B38: =IF(ISBLANK($C$26),"",+B60/$D26*$C26) ->  | C38: =IF(ISBLANK($C$26),"",+C60/$D26*$C26) ->  | D38: =IF(ISBLANK($C$26),"",+D60/$D26*$C26) ->  | J38: 0
B39: =IF(ISBLANK($C$27),"",+B61/$D27*$C27) ->  | C39: =IF(ISBLANK($C$27),"",+C61/$D27*$C27) ->  | D39: =IF(ISBLANK($C$27),"",+D61/$D27*$C27) ->  | J39: 0
B40: =IF(ISBLANK($C$28),"",+B62/$D28*$C28) ->  | C40: =IF(ISBLANK($C$28),"",+C62/$D28*$C28) ->  | D40: =IF(ISBLANK($C$28),"",+D62/$D28*$C28) ->  | J40: 0
B41: =IF(ISBLANK($C$29),"",+B63/$D29*$C29) ->  | C41: =IF(ISBLANK($C$29),"",+C63/$D29*$C29) ->  | D41: =IF(ISBLANK($C$29),"",+D63/$D29*$C29) ->  | J41: 0
B42: =IF(ISBLANK($C$30),"",+B64/$D30*$C30) ->  | C42: =IF(ISBLANK($C$30),"",+C64/$D30*$C30) ->  | D42: =IF(ISBLANK($C$30),"",+D64/$D30*$C30) ->  | J42: 0
B43: =SUM(B36:B42) -> 56666.66667 | C43: =SUM(C36:C42) -> 16666.66667 | D43: 16666.66667 | E43: 0 | F43: 0 | G43: 0 | H43: 0 | I43: 0
B45: Interest payments
B46: 1st year | C46: 2nd year | D46: 3rd year | E46: 4th year | F46: 5th year | G46: 6th year | H46: 7th year | I46: 8th year | J46: Total
B47: =IF(ISERROR(+B58/12*$G24*$C24),"",+B58/12*$G24*$C24) -> 10000 | C47: =IF(ISERROR(+C58/12*$G24*($C24-$B36)),"",+C58/12*$G24*($C24-$B36)) -> 6666.666667 | D47: =IF(ISERROR(+D58/12*$G24*($C24-$B36-$C36)),"",+D58/12*$G24*($C24-$B36-$C36)) -> 3333.333333 | E47: =IF(ISERROR(+E58/12*$G24*($C24-$B36-$C36-$D36)),"",+E58/12*$G24*($C24-$B36-$C36-$D36)) -> 0 | F47: =IF(ISERROR(+F58/12*$G24*($C24-$B36-$C36-$D36-$E36)),"",+F58/12*$G24*($C24-$B36-$C36-$D36-$E36)) -> 0 | G47: =IF(ISERROR(+G58/12*$G24*($C24-$B36-$C36-$D36-$E36-$F36)),"",56/12*$G24*($C24-$B36-$C36-$D36-$E36-$F36)) -> 6.790893773e-12 | H47: =IF(ISERROR(+H58/12*$G24*($C24-$B36-$C36-$D36-$E36-$F36-$G36)),"",+H58/12*$G24*($C24-$B36-$C36-$D36-$E36-$E36-$F36-$G36)) -> 0 | I47: =IF(ISERROR(+I58/12*$G24*($C24-$B36-$C36-$D36-$E36-$F36-$G36-$H36)),"",+I58/12*$G24*($C24-$B36-$C36-$D36-$E36-$F36-$G36-$H36)) -> 0 | J47: =+SUM(B47:I47) -> 20000
B48: 5000 | C48: =IF(ISERROR(+C59/12*$G25*($C25-$B37)),"",+C59/12*$G25*($C25-$B37)) -> 0 | D48: 0 | E48: 0 | F48: 0 | G48: 0 | H48: 0 | I48: 0 | J48: =+SUM(B48:I48) -> 5000
B49: 0 | C49: =IF(ISERROR(+C60/12*$G26*($C26-$B38)),"",+C60/12*$G26*($C26-$B38)) ->  | J49: 0
B50: 0 | J50: 0
B51: 0 | J51: 0
B52: 0 | J52: 0
B53: 0 | J53: 0
B54: =SUM(B47:B53) -> 15000 | C54: =SUM(C47:C53) -> 6666.666667 | D54: 3333.333333 | E54: 0 | F54: 0 | G54: 6.790893773e-12 | H54: 0 | I54: 0
B56: Annual duration of credit / financing services (months)
B57: 1st year | C57: 2nd year | D57: 3rd year | E57: 4th year | F57: 5th year | G57: 6th year | H57: 7th year | I57: 8th year
B58: =+IF(12-$E24+1<$D24,12-$E24+1,$D24) -> 12 | C58: =+IF($D24-$B58>=12,12,$D24-$B58) -> 12 | D58: =+IF($D24-SUM($B58:$C58)>=12,12,$D24-SUM($B58:$C58)) -> 12 | E58: =+IF($D24-SUM($B58:$D58)>=12,12,$D24-SUM($B58:$D58)) -> 0 | F58: =+IF($D24-SUM($B58:$E58)>=12,12,$D24-SUM($B58:$E58)) -> 0 | G58: =+IF($D24-SUM($B58:$F58)>=12,12,$D24-SUM($B58:$F58)) -> 0 | H58: =+IF($D24-SUM($B58:$G58)>=12,12,$D24-SUM($B58:$G58)) -> 0 | I58: =+IF($D24-SUM($B58:$H58)>=12,12,$D24-SUM($B58:$H58)) -> 0
B59: 10 | C59: 0 | D59: 0 | E59: 0 | F59: 0 | G59: 0 | H59: 0 | I59: 0
B60: 0 | C60: 0 | D60: 0 | E60: 0 | F60: 0 | G60: 0 | H60: 0 | I60: 0
B61: 0 | C61: 0 | D61: 0 | E61: 0 | F61: 0 | G61: 0 | H61: 0 | I61: 0
B62: 0 | C62: 0 | D62: 0 | E62: 0 | F62: 0 | G62: 0 | H62: 0 | I62: 0
B63: 0 | C63: 0 | D63: 0 | E63: 0 | F63: 0 | G63: 0 | H63: 0 | I63: 0
B64: 0 | C64: 0 | D64: 0 | E64: 0 | F64: 0 | G64: 0 | H64: 0 | I64: 0

Sheet 4 Seasonal Crops
A1: DESIGN 06 - Farm Analysis Tool
B2: 4 SEASONAL CROP GROSS PROFIT CALCULATION
E4: Farm code | F4: ='1 General Information'!C6 -> Nam_123456789
B6: Agricultural land used: | C6: =SUM(C10:C14) -> 4 | D6: ='1 General Information'!D15 -> ha
D7: Unit | E7: Quantity | F7: Unit Price | G7: Value
B8: Sales
B9: Crop types: | C9: Area:
B10: rice | C10: 1 | D10: kg | E10: 1400 | F10: 500 | G10: =+F10*E10 -> 700000
B11: potatoes | C11: 1 | D11: kg | E11: 1400 | F11: 500 | G11: =+F11*E11 -> 700000
B12: maize | C12: 1 | D12: kg | E12: 1000 | F12: 500 | G12: =+F12*E12 -> 500000
B13: fodder | C13: 1 | D13: kg | E13: 1400 | F13: 500 | G13: 700000
D14: kg | E14: 1400 | F14: 500 | G14: 700000
B15: By-products:
B16: Compost | D16: bags | E16: 500 | F16: 120 | G16: =+F16*E16 -> 60000
B17: Hay | D17: bale | E17: 500 | F17: 120 | G17: 60000
G18: 0
B19: GROSS PRODUCT | G19: =SUM(G10:G18) -> 3420000
B20: Seeds
B21: Local seeds | D21: kg | E21: 100 | G21: =+F21*E21 -> 0
B22: Certified seeds | D22: kg | E22: 80 | F22: 40 | G22: =+F22*E22 -> 3200
C23: Sub-Total | G23: =+G22+G21 -> 3200
B24: Manure & Fertiliser
B25: Manure | D25: kg | E25: 300 | F25: 50 | G25: =+F25*E25 -> 15000
B26: N | D26: kg | E26: 120 | F26: 250 | G26: =+F26*E26 -> 30000
B27: P | D27: kg | E27: 80 | F27: 380 | G27: =+F27*E27 -> 30400
B28: K | D28: kg | E28: 50 | F28: 90 | G28: =+F28*E28 -> 4500
C29: Sub-Total | G29: =+SUM(G25:G28) -> 79900
B30: Plant Protection
B31: Herbicides | D31: kg or litres | E31: 10 | F31: 1300 | G31: =+F31*E31 -> 13000
B32: Insecticides | D32: kg or litres | G32: =+F32*E32 -> 0
B33: Fungicides | D33: kg or litres | G33: =+F33*E33 -> 0
B34: Others | D34: kg or litres | G34: =+F34*E34 -> 0
C35: Sub-Total | G35: =+SUM(G31:G34) -> 13000
B36: Labour (family, permanent staff and temporary staff)
B37: Labour type | C37: Number of labour type:
B38: Family member | C38: 1 | D38: months | E38: 12 | F38: 200 | G38: =+F38*E38*C38 -> 2400 | I38: Family member
B39: Family member | C39: 2 | D39: months | E39: 8 | F39: 200 | G39: =+F39*E39*C39 -> 3200 | I39: Permanent staff
B40: Family member | D40: months | G40: =+F40*E40*C40 -> 0 | I40: Temporary staff
B41: Family member | D41: months | G41: =+F41*E41*C41 -> 0
B42: Family member | C42: 1 | D42: months | E42: 12 | F42: 250 | G42: 3000
B43: Family member | D43: months | G43: 0
B44: Family member | D44: months | G44: 0
B45: Family member | C45: 5 | D45: days | E45: 40 | F45: 10 | G45: 2000
D46: days | G46: 0
D47: days | G47: 0
C48: Sub-Total | G48: =+SUM(G38:G47) -> 10600
B49: Traction and Mechanisation (own equipment and hired services)
B50: Ploughing / tillage | D50: days | E50: 4 | F50: 800 | G50: =+F50*E50 -> 3200
B51: Transport | D51: trips | E51: 4 | F51: 1200 | G51: 4800
G52: 0
G53: 0
G54: 0
C55: Sub-Total | G55: =+SUM(G50:G54) -> 8000
B56: Infrastructure (maintenance and expansion)
B57: Fence repairs | E57: 4 | F57: 800 | G57: =+F57*E57 -> 3200
B58: Irrigation system repair | E58: 3 | F58: 1200 | G58: 3600
B59: New greenhouse | G59: 0
G60: 0
G61: 0
C62: Sub-Total | G62: =+SUM(G57:G61) -> 6800
B63: Irrigation
B64: Water fees | E64: 1 | F64: 400 | G64: =+F64*E64 -> 400
B65: Fuel / energie | E65: 1 | F65: 5000 | G65: =+F65*E65 -> 5000
C66: Sub-Total | G66: =+G65+G64 -> 5400
B67: Other costs
B68: Post-harvest operations | D68: ='1 General Information'!$D$14 -> € | G68: =E68*F68 -> 0
B69: Packaging materials | D69: ='1 General Information'!$D$14 -> € | G69: =E69*F69 -> 0
B70: Processing | D70: ='1 General Information'!$D$14 -> € | G70: 0
B71: Processing | D71: ='1 General Information'!$D$14 -> € | G71: 0
B72: Marketing | D72: ='1 General Information'!$D$14 -> € | E72: 2 | F72: 700 | G72: 1400
C73: Sub-Total | G73: =SUM(G68:G72) -> 1400
B75: TOTAL VARIABLE COSTS | G75: =+G73+G66+G62+G48+G35+G29+G23 -> 120300
B77: GROSS PROFIT | G77: =+G19-G75 -> 3299700

Sheet 5 Perennial Crops
A1: DESIGN 06 - Farm Analysis Tool
B2: 5 PERENNIAL CROP GROSS PROFIT CALCULATION
E4: Farm code | F4: ='1 General Information'!C6 -> Nam_123456789
B6: Agricultural land used: | C6: =SUM(C10:C14) -> 6 | D6: ='1 General Information'!D15 -> ha
D7: Unit | E7: Quantity | F7: Unit Price | G7: Value
B8: Sales
B9: Crop types: | C9: Area:
B10: date palm | C10: 1 | D10: kg | E10: 1400 | F10: 500 | G10: =+F10*E10 -> 700000
B11: pomegranat | C11: 1 | D11: kg | E11: 1400 | F11: 500 | G11: =+F11*E11 -> 700000
B12: citrus | C12: 4 | D12: kg | E12: 1000 | F12: 500 | G12: 500000
D13: kg | F13: 500 | G13: 0
D14: kg | F14: 500 | G14: 0
B15: By-products:
B16: Compost | D16: bags | E16: 500 | F16: 120 | G16: =+F16*E16 -> 60000
B17: Wood | D17: bundles | E17: 500 | F17: 120 | G17: =+F17*E17 -> 60000
G18: 0
B19: GROSS PRODUCT | G19: =SUM(G10:G18) -> 2020000
B20: Seedlings
B21: Local Seedlings | D21: no. | G21: =+F21*E21 -> 0
B22: Nursery Seedlings | D22: no. | E22: 80 | F22: 400 | G22: =+F22*E22 -> 32000
B23: Other establishment cost (juvenile phase) | D23: ='1 General Information'!D20 -> 0 | G23: =F23 -> 0
B24: Duration of juvenile phase | D24: years | E24: 3 | G24: =SUM(G21:G23) -> 32000
C25: Sub-Total | G25: =IF(+G24=0,0,(+G22+G21+G23)/E24) -> 10666.66667
B26: Manure & Fertiliser
B27: Manure | D27: kg | E27: 300 | F27: 50 | G27: =+F27*E27 -> 15000
B28: N | D28: kg | E28: 120 | F28: 250 | G28: =+F28*E28 -> 30000
B29: P | D29: kg | E29: 80 | F29: 380 | G29: =+F29*E29 -> 30400
B30: K | D30: kg | E30: 50 | F30: 20 | G30: =+F30*E30 -> 1000
C31: Sub-Total | G31: =+SUM(G27:G30) -> 76400
B32: Plant Protection
B33: Herbicides | D33: kg or litres | E33: 10 | F33: 1300 | G33: =+F33*E33 -> 13000
B34: Insecticides | D34: kg or litres | E34: 19 | F34: 1000 | G34: =+F34*E34 -> 19000
B35: Fungicides | D35: kg or litres | G35: =+F35*E35 -> 0
B36: Others | D36: kg or litres | G36: =+F36*E36 -> 0
C37: Sub-Total | G37: =+SUM(G33:G36) -> 32000
B38: Labour (family, permanent staff and temporary staff)
B39: Labour type | C39: Number of labour type:
B40: Family member | C40: 1 | D40: months | E40: 12 | F40: 200 | G40: =+F40*E40*C40 -> 2400 | I40: Family member
B41: Family member | C41: 2 | D41: months | E41: 8 | F41: 200 | G41: =+F41*E41*C41 -> 3200 | I41: Permanent staff
B42: Family member | D42: months | G42: =+F42*E42*C42 -> 0 | I42: Temporary staff
B43: Family member | D43: months | G43: =+F43*E43*C43 -> 0
B44: Family member | C44: 1 | D44: months | E44: 12 | F44: 250 | G44: =+F44*E44*C44 -> 3000
B45: Family member | D45: months | G45: 0
B46: Family member | D46: months | G46: 0
B47: Family member | C47: 5 | D47: days | E47: 40 | F47: 10 | G47: 2000
D48: days | G48: 0
D49: days | G49: 0
C50: Sub-Total | G50: =+SUM(G40:G49) -> 10600
B51: Traction and Mechanisation (own equipment and hired services)
B52: Ploughing / tillage | D52: days | E52: 4 | F52: 800 | G52: =+F52*E52 -> 3200
B53: Transport | D53: trips | E53: 1 | F53: 1200 | G53: 1200
G54: 0
G55: 0
G56: 0
C57: Sub-Total | G57: =+SUM(G52:G56) -> 4400
B58: Infrastructure (maintenance and expansion)
B59: Fence repairs | E59: 4 | F59: 800 | G59: =+F59*E59 -> 3200
B60: Irrigation system repair | E60: 3 | F60: 1200 | G60: 3600
G61: 0
G62: 0
G63: 0
C64: Sub-Total | G64: =+SUM(G59:G63) -> 6800
B65: Irrigation
B66: Water fees | E66: 1 | F66: 400 | G66: =+F66*E66 -> 400
B67: Fuel / energie | E67: 1 | F67: 5000 | G67: =+F67*E67 -> 5000
C68: Sub-Total | G68: =+G67+G66 -> 5400
B69: Other costs
B70: Post-harvest operations | D70: ='1 General Information'!$D$14 -> € | G70: =E70*F70 -> 0
B71: Packaging materials | D71: ='1 General Information'!$D$14 -> € | G71: =E71*F71 -> 0
B72: Processing | D72: ='1 General Information'!$D$14 -> € | G72: 0
B73: Processing | D73: ='1 General Information'!$D$14 -> € | G73: 0
B74: Marketing | D74: ='1 General Information'!$D$14 -> € | E74: 2 | F74: 700 | G74: 1400
C75: Sub-Total | G75: =SUM(G70:G74) -> 1400
B77: TOTAL VARIABLE COSTS | G77: =+G75+G68+G64+G50+G37+G31+G25 -> 143266.6667
B79: GROSS PROFIT | G79: =+G19-G77 -> 1876733.333

Sheet 6 Livestock
A1: DESIGN 06 - Farm Analysis Tool
B2: 6 LIVESTOCK GROSS PROFIT CALCULATION
E4: Farm code | F4: ='1 General Information'!C6 -> Nam_123456789
B6: Livestock sold: | C6: =SUM(E10:E23) -> 10 | D6: head
D7: Unit | E7: Quantity | F7: Unit Price | G7: Value
B8: Sales
B9: Livestock type
B10: Dairy cows (0,7 TLU) | D10: head | E10: 10 | F10: 500 | G10: =+F10*E10 -> 5000
B11: Heifers (0,5 TLU) | D11: head | G11: =+F11*E11 -> 0
B12: Adult steers / bullocks (0,7 TLU) | D12: head | G12: 0
B13: Juvenile steers / bullocks (0,5 TLU) | D13: head | G13: 0
B14: Calfs (0,2 TLU) | D14: head | G14: 0
B15: Sheep does (0,1 TLU) | D15: head | G15: 0
B16: Sheep bucks (0,1 TLU) | D16: head | G16: 0
B17: Sheep kids (0,0 TLU) | D17: head | G17: 0
B18: Goat does (0,1 TLU) | D18: head | G18: 0
B19: Goat bucks (0,1 TLU) | D19: head | G19: 0
B20: Goat kids (0,0 TLU) | D20: head | G20: 0
B21: Chickens | D21: head | G21: 0
G22: 0
G23: 0
B24: By-products:
B25: Milk | D25: litres | E25: 500 | F25: 120 | G25: =+F25*E25 -> 60000
B26: Eggs | E26: 500 | F26: 120 | G26: =+F26*E26 -> 60000
B27: Skins | G27: =+F27*E27 -> 0
B28: Manure | G28: =+F28*E28 -> 0
G29: 0
B30: GROSS PRODUCT | G30: =SUM(G10:G29) -> 125000
B31: Fodder & Fodder Concentrates
B32: Regular base fodder | D32: kg | G32: =+F32*E32 -> 0
B33: Special fodder | D33: kg | E33: 80 | F33: 400 | G33: =+F33*E33 -> 32000
B34: Composed concentrates | G34: 0
B35: Husks | G35: 0
B36: Sunflower oil cakes | G36: 0
B37: Grains | G37: 0
B38: Milk powder | E38: 3 | G38: 0
C39: Sub-Total | G39: =SUM(G32:G38) -> 32000
B40: Veterinary Services
B41: Vaccination | D41: ='1 General Information'!$D$14 -> € | G41: =+F41*E41 -> 0
B42: Inspections | D42: ='1 General Information'!$D$14 -> € | G42: =+F42*E42 -> 0
D43: ='1 General Information'!$D$14 -> € | G43: =+F43*E43 -> 0
D44: ='1 General Information'!$D$14 -> € | G44: =+F44*E44 -> 0
C45: Sub-Total | G45: =+SUM(G41:G44) -> 0
B46: Labour (family, permanent staff and temporary staff)
B47: Labour type | C47: Number of labour type:
B48: Family member | C48: 1 | D48: months | E48: 12 | F48: 200 | G48: =+F48*E48*C48 -> 2400 | I48: Family member
B49: Family member | C49: 2 | D49: months | E49: 8 | F49: 200 | G49: =+F49*E49*C49 -> 3200 | I49: Permanent staff
B50: Family member | D50: months | G50: =+F50*E50*C50 -> 0 | I50: Temporary staff
B51: Family member | D51: months | G51: =+F51*E51*C51 -> 0
B52: Family member | C52: 1 | D52: months | E52: 12 | F52: 250 | G52: =+F52*E52*C52 -> 3000
B53: Family member | D53: months | G53: 0
B54: Family member | D54: months | G54: 0
B55: Family member | C55: 5 | D55: days | E55: 40 | F55: 10 | G55: 2000
D56: days | G56: 0
D57: days | G57: 0
C58: Sub-Total | G58: =+SUM(G48:G57) -> 10600
B59: Traction and Mechanisation (own equipment and hired services)
B60: Ploughing / tillage | D60: days | E60: 4 | F60: 800 | G60: =+F60*E60 -> 3200
B61: Transport | D61: trips | E61: 3 | F61: 1200 | G61: 3600
G62: 0
G63: 0
G64: 0
C65: Sub-Total | G65: =+SUM(G60:G64) -> 6800
B66: Infrastructure (maintenance and expansion)
B67: Fence repair | D67: ='1 General Information'!$D$14 -> € | E67: 4 | F67: 800 | G67: =+F67*E67 -> 3200
B68: New shed | D68: ='1 General Information'!$D$14 -> € | E68: 1 | F68: 30000 | G68: 30000
D69: ='1 General Information'!$D$14 -> € | G69: 0
D70: ='1 General Information'!$D$14 -> € | G70: 0
D71: ='1 General Information'!$D$14 -> € | G71: 0
C72: Sub-Total | G72: =+SUM(G67:G71) -> 33200
B73: Water supply
B74: Water fees | E74: 1 | F74: 400 | G74: =+F74*E74 -> 400
B75: Fuel / energie | E75: 1 | F75: 5000 | G75: =+F75*E75 -> 5000
C76: Sub-Total | G76: =+G75+G74 -> 5400
B77: Other costs
B78: Cooling services | D78: ='1 General Information'!$D$14 -> € | G78: =E78*F78 -> 0
B79: Abattoir services | D79: ='1 General Information'!$D$14 -> € | G79: =E79*F79 -> 0
B80: Packaging materials | D80: ='1 General Information'!$D$14 -> € | G80: 0
B81: Pasture leasing | D81: ='1 General Information'!$D$14 -> € | G81: 0
B82: Processing | D82: ='1 General Information'!$D$14 -> € | G82: 0
B83: Marketing | D83: ='1 General Information'!$D$14 -> € | G83: 0
D84: ='1 General Information'!$D$14 -> € | E84: 2 | F84: 700 | G84: =E84*F84 -> 1400
C85: Sub-Total | G85: =SUM(G78:G84) -> 1400
B87: TOTAL VARIABLE COSTS | G87: =+G85+G76+G72+G58+G65+G45+G39 -> 89400
B89: GROSS PROFIT | G89: =+G30-G87 -> 35600

Sheet 7 Summary
B1: DESIGN 06 - Farm Analysis Tool
B2: 7 SUMMARY OF GROSS MARGINS
B4: Farm code | C4: ='1 General Information'!C6 -> Nam_123456789
B6: Farm Enterprise | C6: Area cultivated / Livestock sold | D6: Gross Main Product | E6: Gross By-product | F6: Gross Prodcut | G6: Seeds / Seedlings / Establishment | H6: Fodder / Fodder Concentrates | I6: Manure / Fertiliser | J6: Veterinary Services | K6: Plant Protection | L6: Labour | M6: Traction / Mechanisation | N6: Infrastructure | O6: Irrigation / Water supply | P6: Other Costs | Q6: Total Variable Costs | R6: Gross Profit | S6: Share of enterprise at total GM
C7: ha / head | D7: ='1 General Information'!D14 -> € | E7: ='1 General Information'!D14 -> € | F7: ='1 General Information'!D14 -> € | G7: =F7 -> € | H7: =G7 -> € | I7: =F7 -> € | J7: =H7 -> € | K7: =F7 -> € | L7: =G7 -> € | M7: =I7 -> € | N7: =J7 -> € | O7: =K7 -> € | P7: =L7 -> € | Q7: =M7 -> € | R7: =Q7 -> € | S7: %
D8: total | E8: total | F8: total | G8: total | H8: total | I8: total | J8: total | K8: total | L8: total | M8: total | N8: total | O8: total | P8: total | Q8: total | R8: per farm enterprise
B9: Seasonal crops | C9: ='4 Seasonal Crops'!C6 -> 4 | D9: =SUM('4 Seasonal Crops'!G10:G14) -> 3300000 | E9: =SUM('4 Seasonal Crops'!G16:G18) -> 120000 | F9: ='4 Seasonal Crops'!G19 -> 3420000 | G9: ='4 Seasonal Crops'!G23 -> 3200 | I9: ='4 Seasonal Crops'!G29 -> 79900 | K9: ='4 Seasonal Crops'!G35 -> 13000 | L9: ='4 Seasonal Crops'!G48 -> 10600 | M9: ='4 Seasonal Crops'!G55 -> 8000 | N9: ='4 Seasonal Crops'!G62 -> 6800 | O9: ='4 Seasonal Crops'!G66 -> 5400 | P9: ='4 Seasonal Crops'!G73 -> 1400 | Q9: ='4 Seasonal Crops'!G75 -> 120300 | R9: ='4 Seasonal Crops'!G77 -> 3299700 | S9: =IF($R$12=0,0,+R9/$R$12) -> 0.633092651
B10: Perennial crops | C10: ='5 Perennial Crops'!C6 -> 6 | D10: =SUM('5 Perennial Crops'!G10:G14) -> 1900000 | E10: =SUM('5 Perennial Crops'!G16:G18) -> 120000 | F10: ='5 Perennial Crops'!G19 -> 2020000 | G10: ='5 Perennial Crops'!G25 -> 10666.66667 | I10: ='5 Perennial Crops'!G31 -> 76400 | K10: ='5 Perennial Crops'!G37 -> 32000 | L10: ='5 Perennial Crops'!G50 -> 10600 | M10: ='5 Perennial Crops'!G57 -> 4400 | N10: ='5 Perennial Crops'!G64 -> 6800 | O10: ='5 Perennial Crops'!G68 -> 5400 | P10: ='5 Perennial Crops'!G75 -> 1400 | Q10: ='5 Perennial Crops'!G77 -> 143266.6667 | R10: ='5 Perennial Crops'!G79 -> 1876733.333 | S10: =IF($R$12=0,0,+R10/$R$12) -> 0.3600770013
B11: Livestock | C11: ='6 Livestock'!C6 -> 10 | D11: =SUM('6 Livestock'!G10:G23) -> 5000 | E11: =SUM('6 Livestock'!G25:G29) -> 120000 | F11: ='6 Livestock'!G30 -> 125000 | H11: ='6 Livestock'!G39 -> 32000 | J11: ='6 Livestock'!G45 -> 0 | L11: ='6 Livestock'!G58 -> 10600 | N11: ='6 Livestock'!G72 -> 33200 | O11: ='6 Livestock'!G76 -> 5400 | P11: ='6 Livestock'!G85 -> 1400 | Q11: ='6 Livestock'!G87 -> 89400 | R11: ='6 Livestock'!G89 -> 35600 | S11: =IF($R$12=0,0,+R11/$R$12) -> 0.006830347721
B12: Sub-Total (for entire farm) | D12: =SUM(D9:D11) -> 5205000 | E12: =SUM(E9:E11) -> 360000 | F12: 5565000 | G12: 13866.66667 | H12: 32000 | I12: 156300 | J12: 0 | K12: 45000 | L12: 31800 | M12: 12400 | N12: 46800 | O12: 16200 | P12: 4200 | Q12: =SUM(Q9:Q11) -> 352966.6667 | R12: =SUM(R9:R11) -> 5212033.333 | S12: =SUM(S9:S11) -> 1

Sheet 8 Farm Income Statement
A1: DESIGN 06 - Farm Analysis Tool
B2: 8 FARM INCOME STATEMENT (incl. family labour and own equipment)
F4: Farm code | G4: ='1 General Information'!C6 -> Nam_123456789
C6: + | D6: Gross value of seasonal crop production | E6: ='7 Summary'!D9 -> 3300000 | F6: ='1 General Information'!$D$14 -> € | G6: + | H6: =IF($E$13=0,0,+E6/$E$13) -> 0.5929386398
C7: + | D7: Gross value of seasonal crop by-product production | E7: ='7 Summary'!E9 -> 120000 | F7: ='1 General Information'!$D$14 -> € | G7: + | H7: 0.02156140508
C8: + | D8: Gross value of perennial crop production | E8: ='7 Summary'!D10 -> 1900000 | F8: ='1 General Information'!$D$14 -> € | G8: + | H8: 0.3413889138
C9: + | D9: Gross value of perennial crop by-product production | E9: ='7 Summary'!E10 -> 120000 | F9: ='1 General Information'!$D$14 -> € | G9: + | H9: 0.02156140508
C10: + | D10: Gross value of livestock production: | E10: ='7 Summary'!D11 -> 5000 | F10: ='1 General Information'!$D$14 -> € | G10: + | H10: 0.0008983918785
C11: + | D11: Gross value of livestock by-product production: | E11: ='7 Summary'!E11 -> 120000 | F11: ='1 General Information'!$D$14 -> € | G11: + | H11: 0.02156140508
C12: + | D12: Gross value of land leased out: | E12: ='1 General Information'!C47 -> 500 | F12: ='1 General Information'!$D$14 -> € | G12: + | H12: 8.983918785e-05
C13: = | D13: GROSS FARM INCOME | E13: =+SUM(E6:E12) -> 5565500 | F13: ='1 General Information'!$D$14 -> € | G13: = | H13: =SUM(H6:H12) -> 1
C15: - | D15: Anticipated losses of total sales | E15: 0.1 | F15: %
C17: - | D17: Variable costs | E17: ='7 Summary'!Q12 -> 352966.6667 | F17: ='1 General Information'!$D$14 -> €
C18: - | D18: Other variable costs | F18: ='1 General Information'!$D$14 -> €
C19: - | D19: Depreciation | E19: ='2 Equipment & Assets'!H44 -> 99579.46881 | F19: ='1 General Information'!$D$14 -> €
C20: - | D20: Fixed costs: Maintenance & repair of equipment | E20: ='3 Fixed Costs & Financing'!O8 -> 0 | F20: ='1 General Information'!$D$14 -> €
C21: - | D21: Fixed costs: Fuel & lubricants | E21: ='3 Fixed Costs & Financing'!O9 -> 0 | F21: ='1 General Information'!$D$14 -> €
C22: - | D22: Fixed costs: Water, electricity, gas | E22: ='3 Fixed Costs & Financing'!O10 -> 0 | F22: ='1 General Information'!$D$14 -> €
C23: - | D23: Fixed costs: Transport | E23: ='3 Fixed Costs & Financing'!O11 -> 0 | F23: ='1 General Information'!$D$14 -> €
C24: - | D24: Fixed costs: Interest payment | E24: ='3 Fixed Costs & Financing'!H31 -> 6444.444444 | F24: ='1 General Information'!$D$14 -> €
C25: - | D25: Fixed costs: Land leased in | E25: ='1 General Information'!C44 -> 300 | F25: ='1 General Information'!$D$14 -> €
C26: - | D26: Other non-variable costs | E26: ='3 Fixed Costs & Financing'!O14 -> 0 | F26: ='1 General Information'!$D$14 -> €
C27: = | D27: TOTAL EXPENSES | E27: =SUM(E17:E26) -> 459290.5799 | F27: ='1 General Information'!$D$14 -> €
C46: = | D46: GROSS FARM PROFIT | E46: ="For period" & '1 General Information'!D13 -> For period2019 | F46: ="to" & '1 General Information'!E13 -> to2020 | G46: =E13-(E13*E15)-E27 -> 4549659.42 | H46: ='1 General Information'!$D$14 -> €
D47: average per ha of crops | G47: =SUM('7 Summary'!R9:R10)/SUM('7 Summary'!C9:C10) -> 517643.3333 | H47: ='1 General Information'!$D$14 -> €
D48: average per head of livestock | G48: ='7 Summary'!R11/'7 Summary'!C11 -> 3560 | H48: ='1 General Information'!$D$14 -> €
D49: total crop area under cultivation | G49: ='7 Summary'!C9+'7 Summary'!C10 -> 10 | H49: ='1 General Information'!D15 -> ha
C50: total number of employees (familiy, permanent and temporary staff) | G50: =SUM('4 Seasonal Crops'!C38:C47)+SUM('5 Perennial Crops'!C40:C49)+SUM('6 Livestock'!C48:C57) -> 27 | H50: persons
